[Event "HSG Open 2022 A"]
[Site "Hilversum, Netherlands"]
[Date "2022.06.18"]
[Round "3.8"]
[White "Khabichev, Valeriy"]
[Black "Leenhouts, Koen"]
[Result "1/2-1/2"]
[TimeControl "1:50 + 0.10"]
[WhiteElo "2075"]
[BlackElo "2440"]

1. e4 {[%clk 01:43:11]} {[%emt 00:07:08]} c5 {[%clk 01:50:02]} {[%emt
00:00:18]} 2. Nf3 {[%clk 01:43:17]} {[%emt 00:00:05]} e6 {[%clk 01:50:03]}
{[%emt 00:00:08]} 3. d4 {[%clk 01:43:09]} {[%emt 00:00:21]} cxd4 {[%clk
01:50:04]} {[%emt 00:00:08]} 4. Nxd4 {[%clk 01:42:35]} {[%emt 00:00:45]} Nc6
{[%clk 01:50:05]} {[%emt 00:00:08]} 5. Nb5 {[%clk 01:41:51]} {[%emt 00:00:54]}
d6 {[%clk 01:49:59]} {[%emt 00:00:15]} 6. Bf4 {[%clk 01:40:19]} {[%emt
00:01:42]} e5 {[%clk 01:50:00]} {[%emt 00:00:08]} 7. Be3 {[%clk 01:39:57]}
{[%emt 00:00:31]} Be6 {[%clk 01:50:05]} {[%emt 00:00:06]} 8. Be2 {[%clk
01:36:29]} {[%emt 00:03:38]} a6 {[%clk 01:48:10]} {[%emt 00:02:06]} 9. N5c3
{[%clk 01:32:43]} {[%emt 00:03:55]} Nf6 {[%clk 01:48:02]} {[%emt 00:00:18]} 10.
O-O {[%clk 01:32:07]} {[%emt 00:00:47]} Be7 {[%clk 01:46:47]} {[%emt 00:01:25]}
11. a4 {[%clk 01:23:45]} {[%emt 00:08:32]} O-O {[%clk 01:45:35]} {[%emt
00:01:21]} 12. Nd2 {[%clk 01:22:52]} {[%emt 00:01:03]} Rc8 {[%clk 01:38:03]}
{[%emt 00:07:42]} 13. Nc4 {[%clk 01:18:23]} {[%emt 00:04:40]} Nd4 {[%clk
01:32:18]} {[%emt 00:05:54]} 14. Bxd4 {[%clk 01:17:15]} {[%emt 00:01:19]} Bxc4
{[%clk 01:32:24]} {[%emt 00:00:04]} 15. Be3 {[%clk 01:16:55]} {[%emt 00:00:29]}
Qa5 {[%clk 01:31:44]} {[%emt 00:00:51]} 16. Bxc4 {[%clk 01:16:02]} {[%emt
00:01:03]} Rxc4 {[%clk 01:31:49]} {[%emt 00:00:05]} 17. Qd3 {[%clk 01:15:37]}
{[%emt 00:00:34]} Rfc8 {[%clk 01:31:15]} {[%emt 00:00:45]} 18. f3 {[%clk
01:13:50]} {[%emt 00:01:57]} h6 {[%clk 01:26:40]} {[%emt 00:04:46]} 19. Rfd1
{[%clk 01:06:19]} {[%emt 00:07:41]} Qb4 {[%clk 01:25:41]} {[%emt 00:01:08]} 20.
Ra3 {[%clk 00:58:13]} {[%emt 00:08:15]} Qxb2 {[%clk 01:25:36]} {[%emt
00:00:16]} 21. Rb3 {[%clk 00:57:46]} {[%emt 00:00:37]} Qxc3 {[%clk 01:25:17]}
{[%emt 00:00:30]} 22. Rxc3 {[%clk 00:57:35]} {[%emt 00:00:21]} Rxc3 {[%clk
01:25:18]} {[%emt 00:00:08]} 23. Qd2 {[%clk 00:49:40]} {[%emt 00:08:05]} Rxc2
{[%clk 01:23:36]} {[%emt 00:01:52]} 24. Qb4 {[%clk 00:48:05]} {[%emt 00:01:44]}
R8c7 {[%clk 01:23:24]} {[%emt 00:00:23]} 25. Qb1 {[%clk 00:41:15]} {[%emt
00:06:59]} Bf8 {[%clk 01:16:25]} {[%emt 00:07:10]} 26. a5 {[%clk 00:39:29]}
{[%emt 00:01:55]} Be7 {[%clk 01:09:43]} {[%emt 00:06:53]} 27. Bb6 {[%clk
00:37:27]} {[%emt 00:02:13]} R7c6 {[%clk 01:08:25]} {[%emt 00:01:27]} 28. Be3
{[%clk 00:36:53]} {[%emt 00:00:44]} Rc7 {[%clk 01:06:20]} {[%emt 00:02:15]} 29.
Bb6 {[%clk 00:36:51]} {[%emt 00:00:12]} R7c3 {[%clk 01:01:40]} {[%emt
00:04:50]} 30. Bf2 {[%clk 00:33:00]} {[%emt 00:04:01]} Bd8 {[%clk 00:59:42]}
{[%emt 00:02:08]} 31. Qxb7 {[%clk 00:29:00]} {[%emt 00:04:10]} Bxa5 {[%clk
00:59:16]} {[%emt 00:00:36]} 32. Qxa6 {[%clk 00:24:05]} {[%emt 00:05:06]} Bb4
{[%clk 00:58:07]} {[%emt 00:01:18]} 33. Qb7 {[%clk 00:22:12]} {[%emt 00:02:04]}
Rb2 {[%clk 00:56:15]} {[%emt 00:02:02]} 34. Kh1 {[%clk 00:14:43]} {[%emt
00:07:39]} Rcc2 {[%clk 00:54:10]} {[%emt 00:02:15]} 35. Ba7 {[%clk 00:09:40]}
{[%emt 00:05:12]} Rxg2 {[%clk 00:52:29]} {[%emt 00:01:51]} 36. Qc8+ {[%clk
00:09:24]} {[%emt 00:00:26]} Kh7 {[%clk 00:52:36]} {[%emt 00:00:04]} 37. Qf5+
{[%clk 00:09:11]} {[%emt 00:00:22]} Kh8 {[%clk 00:51:03]} {[%emt 00:01:43]} 38.
Bg1 {[%clk 00:06:58]} {[%emt 00:02:22]} Rg5 {[%clk 00:41:26]} {[%emt 00:09:48]}
39. Qh3 {[%clk 00:04:54]} {[%emt 00:02:13]} Nh5 {[%clk 00:40:47]} {[%emt
00:00:50]} 40. Be3 {[%clk 00:04:24]} {[%emt 00:00:40]} Nf4 {[%clk 00:40:48]}
{[%emt 00:00:09]} 41. Bxf4 {[%clk 00:04:18]} {[%emt 00:00:17]} exf4 {[%clk
00:40:55]} {[%emt 00:00:03]} 42. Rg1 {[%clk 00:02:36]} {[%emt 00:01:51]} Bc5
{[%clk 00:37:13]} {[%emt 00:03:52]} 43. Qc8+ {[%clk 00:02:37]} {[%emt
00:00:11]} Kh7 {[%clk 00:37:18]} {[%emt 00:00:04]} 44. Rxg5 {[%clk 00:01:44]}
{[%emt 00:01:04]} Rb1+ {[%clk 00:37:20]} {[%emt 00:00:07]} 45. Kg2 {[%clk
00:01:53]} {[%emt 00:00:01]} Rg1+ {[%clk 00:37:21]} {[%emt 00:00:09]} 46. Kh3
{[%clk 00:01:58]} {[%emt 00:00:05]} Rxg5 {[%clk 00:37:23]} {[%emt 00:00:07]} 47.
Qd7 {[%clk 00:01:39]} {[%emt 00:00:30]} Kg6 {[%clk 00:37:12]} {[%emt 00:00:20]}
48. Qc8 {[%clk 00:00:41]} {[%emt 00:01:10]} Bd4 {[%clk 00:33:52]} {[%emt
00:03:28]} 49. Qd7 {[%clk 00:00:43]} {[%emt 00:00:08]} Be5 {[%clk 00:33:14]}
{[%emt 00:00:48]} 50. Qc8 {[%clk 00:00:52]} {[%emt 00:00:02]} Rh5+ {[%clk
00:29:17]} {[%emt 00:04:06]} 51. Kg2 {[%clk 00:00:52]} {[%emt 00:00:10]} Bd4
{[%clk 00:28:52]} {[%emt 00:00:35]} 52. Qd7 {[%clk 00:00:56]} {[%emt 00:00:07]}
Bc5 {[%clk 00:28:46]} {[%emt 00:00:15]} 53. h4 {[%clk 00:00:33]} {[%emt
00:00:34]} Re5 {[%clk 00:27:38]} {[%emt 00:01:17]} 54. Qg4+ {[%clk 00:00:29]}
{[%emt 00:00:14]} Kh7 {[%clk 00:27:45]} {[%emt 00:00:04]} 55. Qd7 {[%clk
00:00:33]} {[%emt 00:00:06]} f6 {[%clk 00:27:16]} {[%emt 00:00:39]} 56. Qg4
{[%clk 00:00:27]} {[%emt 00:00:15]} Be3 {[%clk 00:25:40]} {[%emt 00:01:46]} 57.
Qd7 {[%clk 00:00:31]} {[%emt 00:00:07]} Rc5 {[%clk 00:25:36]} {[%emt 00:00:13]}
58. Qxd6 {[%clk 00:00:22]} {[%emt 00:00:20]} Rc2+ {[%clk 00:25:44]} {[%emt
00:00:02]} 59. Kh1 {[%clk 00:00:20]} {[%emt 00:00:12]} Rc5 {[%clk 00:23:43]}
{[%emt 00:02:11]} 60. Qe6 {[%clk 00:00:28]} {[%emt 00:00:02]} Re5 {[%clk
00:23:01]} {[%emt 00:00:52]} 61. Qd7 {[%clk 00:00:37]} {[%emt 00:00:01]} Bf2
{[%clk 00:22:06]} {[%emt 00:01:04]} 62. Qg4 {[%clk 00:00:45]} {[%emt 00:00:02]}
Bg3 {[%clk 00:22:04]} {[%emt 00:00:13]} 63. Kg2 {[%clk 00:00:34]} {[%emt
00:00:21]} h5 {[%clk 00:22:04]} {[%emt 00:00:09]} 64. Qh3 {[%clk 00:00:26]}
{[%emt 00:00:18]} Rc5 {[%clk 00:21:46]} {[%emt 00:00:29]} 65. Kf1 {[%clk
00:00:20]} {[%emt 00:00:15]} Kh6 {[%clk 00:21:00]} {[%emt 00:00:57]} 66. Ke2
{[%clk 00:00:19]} {[%emt 00:00:11]} Rc3 {[%clk 00:19:48]} {[%emt 00:01:21]} 67.
Kd2 {[%clk 00:00:15]} {[%emt 00:00:16]} Rxf3 {[%clk 00:19:06]} {[%emt
00:00:51]} 68. Qc8 {[%clk 00:00:23]} {[%emt 00:00:02]} Bxh4 {[%clk 00:17:30]}
{[%emt 00:01:46]} 69. Qh8+ {[%clk 00:00:32]} Kg6 {[%clk 00:17:29]} {[%emt
00:00:10]} 70. Qe8+ {[%clk 00:00:23]} {[%emt 00:00:20]} Kg5 {[%clk 00:17:35]}
{[%emt 00:00:04]} 71. Qf7 {[%clk 00:00:21]} {[%emt 00:00:12]} Rf2+ {[%clk
00:17:17]} {[%emt 00:00:28]} 72. Kd3 {[%clk 00:00:26]} {[%emt 00:00:04]} g6
{[%clk 00:16:43]} {[%emt 00:00:44]} 73. e5 {[%clk 00:00:16]} {[%emt 00:00:21]}
Rf3+ {[%clk 00:14:53]} {[%emt 00:01:59]} 74. Kc4 {[%clk 00:00:25]} {[%emt
00:00:02]} fxe5 {[%clk 00:14:46]} {[%emt 00:00:17]} 75. Qe7+ {[%clk 00:00:31]}
{[%emt 00:00:04]} Kg4 {[%clk 00:14:43]} {[%emt 00:00:13]} 76. Qe6 {[%clk
00:00:29]} {[%emt 00:00:12]} Kg3 {[%clk 00:14:20]} {[%emt 00:00:32]} 77. Qxg6+
{[%clk 00:00:28]} {[%emt 00:00:12]} Kf2 {[%clk 00:14:03]} {[%emt 00:00:24]} 78.
Qxh5 {[%clk 00:00:32]} {[%emt 00:00:08]} Bg3 {[%clk 00:14:04]} {[%emt
00:00:10]} 79. Qxe5 {[%clk 00:00:23]} {[%emt 00:00:19]} Re3 {[%clk 00:14:09]}
{[%emt 00:00:04]} 80. Qd4 {[%clk 00:00:19]} {[%emt 00:00:14]} Kf1 {[%clk
00:13:01]} {[%emt 00:01:18]} 81. Qd1+ {[%clk 00:00:17]} {[%emt 00:00:12]} Kg2
{[%clk 00:13:03]} {[%emt 00:00:09]} 82. Kd4 {[%clk 00:00:17]} {[%emt 00:00:10]}
Bf2 {[%clk 00:13:00]} {[%emt 00:00:13]} 83. Kc4 {[%clk 00:00:19]} {[%emt
00:00:09]} f3 {[%clk 00:12:58]} {[%emt 00:00:11]} 84. Qd5 {[%clk 00:00:16]}
{[%emt 00:00:13]} Re1 {[%clk 00:12:22]} {[%emt 00:00:46]} 85. Qg5+ {[%clk
00:00:23]} {[%emt 00:00:03]} Bg3 {[%clk 00:12:20]} {[%emt 00:00:12]} 86. Qd5
{[%clk 00:00:30]} {[%emt 00:00:04]} Rc1+ {[%clk 00:11:32]} {[%emt 00:00:57]} 87.
Kb3 {[%clk 00:00:37]} {[%emt 00:00:03]} Rc7 {[%clk 00:11:02]} {[%emt 00:00:39]}
88. Ka2 {[%clk 00:00:37]} {[%emt 00:00:11]} Re7 {[%clk 00:10:48]} {[%emt
00:00:23]} 89. Kb3 {[%clk 00:00:38]} {[%emt 00:00:10]} Re3+ {[%clk 00:10:45]}
{[%emt 00:00:13]} 90. Kc4 {[%clk 00:00:48]} {[%emt 00:00:01]} Kf1 {[%clk
00:08:51]} {[%emt 00:02:02]} 91. Qg5 {[%clk 00:00:23]} {[%emt 00:00:35]} Bf2
{[%clk 00:08:41]} {[%emt 00:00:21]} 92. Qg6 {[%clk 00:00:18]} {[%emt 00:00:15]}
Be1 {[%clk 00:08:09]} {[%emt 00:00:42]} 93. Kd4 {[%clk 00:00:17]} {[%emt
00:00:11]} Bf2 {[%clk 00:07:40]} {[%emt 00:00:39]} 94. Kc4 {[%clk 00:00:26]}
{[%emt 00:00:02]} Be1 {[%clk 00:06:23]} {[%emt 00:01:26]} 95. Kd4 {[%clk
00:00:34]} {[%emt 00:00:02]} Ra3 {[%clk 00:06:13]} {[%emt 00:00:19]} 96. Qd6
{[%clk 00:00:15]} {[%emt 00:00:26]} Ra4+ {[%clk 00:03:39]} {[%emt 00:02:48]} 97.
Ke3 {[%clk 00:00:14]} {[%emt 00:00:10]} f2 {[%clk 00:02:57]} {[%emt 00:00:53]}
98. Kf3 {[%clk 00:00:13]} {[%emt 00:00:11]} Bb4 {[%clk 00:01:23]} {[%emt
00:01:44]} 99. Qd3+ {[%clk 00:00:15]} {[%emt 00:00:08]} Kg1 {[%clk 00:01:30]}
{[%emt 00:00:03]} 100. Qg6+ {[%clk 00:00:23]} {[%emt 00:00:02]} Kf1 {[%clk
00:01:37]} {[%emt 00:00:03]} 101. Qg2+ {[%clk 00:00:25]} {[%emt 00:00:08]} Ke1
{[%clk 00:01:45]} {[%emt 00:00:02]} 102. Qxf2+ {[%clk 00:00:34]} {[%emt
00:00:01]} Kd1 {[%clk 00:01:53]} {[%emt 00:00:02]} 103. Qb2 {[%clk 00:00:15]}
{[%emt 00:00:28]} Ra3+ {[%clk 00:01:46]} {[%emt 00:00:18]} 104. Qxa3 {[%clk
00:00:14]} {[%emt 00:00:11]} 1/2-1/2

[Event "HSG Open 2022 A"]
[Site "Hilversum, Netherlands"]
[Date "2022.06.18"]
[Round "3.9"]
[White "Grutter, Tim"]
[Black "Spit, Vincent"]
[Result "1-0"]
[TimeControl "1:50 + 0.10"]
[WhiteElo "2234"]
[BlackElo "2091"]

1. e4 {[%clk 01:50:18]} {[%emt 00:00:02]} c5 {[%clk 01:50:11]} {[%emt
00:00:10]} 2. Nf3 {[%clk 01:50:25]} {[%emt 00:00:02]} e6 {[%clk 01:50:09]}
{[%emt 00:00:13]} 3. d4 {[%clk 01:50:31]} {[%emt 00:00:03]} cxd4 {[%clk
01:50:11]} {[%emt 00:00:07]} 4. Nxd4 {[%clk 01:50:36]} {[%emt 00:00:06]} a6
{[%clk 01:50:09]} {[%emt 00:00:11]} 5. c4 {[%clk 01:50:40]} {[%emt 00:00:07]}
Nf6 {[%clk 01:49:52]} {[%emt 00:00:27]} 6. Nc3 {[%clk 01:50:43]} {[%emt
00:00:08]} Bb4 {[%clk 01:49:30]} {[%emt 00:00:32]} 7. Qd3 {[%clk 01:49:52]}
{[%emt 00:01:01]} Nc6 {[%clk 01:41:29]} {[%emt 00:08:11]} 8. Nxc6 {[%clk
01:44:55]} {[%emt 00:05:06]} dxc6 {[%clk 01:41:24]} {[%emt 00:00:15]} 9. Qxd8+
{[%clk 01:44:39]} {[%emt 00:00:26]} Kxd8 {[%clk 01:41:26]} {[%emt 00:00:07]} 10.
Bd2 {[%clk 01:42:32]} {[%emt 00:02:20]} e5 {[%clk 01:38:47]} {[%emt 00:02:47]}
11. f3 {[%clk 01:40:04]} {[%emt 00:02:39]} Ke7 {[%clk 01:31:55]} {[%emt
00:07:01]} 12. g4 {[%clk 01:28:50]} {[%emt 00:11:24]} Bd6 {[%clk 01:27:20]}
{[%emt 00:04:45]} 13. O-O-O {[%clk 01:17:41]} {[%emt 00:11:20]} Be6 {[%clk
01:23:46]} {[%emt 00:03:43]} 14. Bg5 {[%clk 01:15:14]} {[%emt 00:02:38]} b5
{[%clk 01:17:20]} {[%emt 00:06:35]} 15. Be2 {[%clk 01:12:47]} {[%emt 00:02:38]}
bxc4 {[%clk 01:13:31]} {[%emt 00:03:58]} 16. Kb1 {[%clk 01:04:31]} {[%emt
00:08:26]} a5 {[%clk 01:08:12]} {[%emt 00:05:29]} 17. Rc1 {[%clk 01:02:55]}
{[%emt 00:01:47]} h6 {[%clk 00:57:04]} {[%emt 00:11:18]} 18. Be3 {[%clk
01:01:19]} {[%emt 00:01:46]} a4 {[%clk 00:55:19]} {[%emt 00:01:54]} 19. a3
{[%clk 00:58:24]} {[%emt 00:03:06]} Rhb8 {[%clk 00:52:27]} {[%emt 00:03:01]} 20.
Ka1 {[%clk 00:56:56]} {[%emt 00:01:39]} Nd7 {[%clk 00:51:15]} {[%emt 00:01:22]}
21. Nd1 {[%clk 00:53:57]} {[%emt 00:03:09]} Nc5 {[%clk 00:47:44]} {[%emt
00:03:41]} 22. Bxc5 {[%clk 00:53:12]} {[%emt 00:00:55]} Bxc5 {[%clk 00:47:47]}
{[%emt 00:00:07]} 23. Bxc4 {[%clk 00:53:13]} {[%emt 00:00:09]} Bxc4 {[%clk
00:45:49]} {[%emt 00:02:07]} 24. Rxc4 {[%clk 00:53:06]} {[%emt 00:00:18]} Bd4
{[%clk 00:45:49]} {[%emt 00:00:08]} 25. Nc3 {[%clk 00:48:00]} {[%emt 00:05:17]}
Kd6 {[%clk 00:42:44]} {[%emt 00:03:16]} 26. Rc1 {[%clk 00:44:18]} {[%emt
00:03:52]} Rb3 {[%clk 00:41:10]} {[%emt 00:01:44]} 27. Rc2 {[%clk 00:43:13]}
{[%emt 00:01:14]} Bxc3 {[%clk 00:38:07]} {[%emt 00:03:12]} 28. R4xc3 {[%clk
00:42:03]} {[%emt 00:01:21]} Rxc3 {[%clk 00:38:08]} {[%emt 00:00:09]} 29. Rxc3
{[%clk 00:42:11]} {[%emt 00:00:03]} c5 {[%clk 00:34:51]} {[%emt 00:03:26]} 30.
Kb1 {[%clk 00:41:31]} {[%emt 00:00:51]} Kc6 {[%clk 00:34:13]} {[%emt 00:00:47]}
31. Rd3 {[%clk 00:36:36]} {[%emt 00:05:05]} f6 {[%clk 00:32:42]} {[%emt
00:01:41]} 32. Kc2 {[%clk 00:30:20]} {[%emt 00:06:27]} h5 {[%clk 00:32:03]}
{[%emt 00:00:49]} 33. h3 {[%clk 00:23:12]} {[%emt 00:07:18]} hxg4 {[%clk
00:31:45]} {[%emt 00:00:28]} 34. fxg4 {[%clk 00:23:17]} {[%emt 00:00:05]} c4
{[%clk 00:30:31]} {[%emt 00:01:23]} 35. Rd5 {[%clk 00:16:06]} {[%emt 00:07:22]}
Rh8 {[%clk 00:30:03]} {[%emt 00:00:37]} 36. Ra5 {[%clk 00:15:44]} {[%emt
00:00:34]} Rxh3 {[%clk 00:30:01]} {[%emt 00:00:10]} 37. Rxa4 {[%clk 00:15:51]}
{[%emt 00:00:04]} Kc5 {[%clk 00:29:17]} {[%emt 00:00:53]} 38. Ra7 {[%clk
00:14:49]} {[%emt 00:01:13]} Rh2+ {[%clk 00:28:22]} {[%emt 00:01:05]} 39. Kc3
{[%clk 00:14:33]} {[%emt 00:00:27]} Rh3+ {[%clk 00:28:24]} {[%emt 00:00:07]} 40.
Kc2 {[%clk 00:14:42]} Kd4 {[%clk 00:26:48]} {[%emt 00:01:46]} 41. Rxg7 {[%clk
00:14:19]} {[%emt 00:00:35]} Rh2+ {[%clk 00:26:45]} {[%emt 00:00:11]} 42. Kb1
{[%clk 00:14:12]} {[%emt 00:00:18]} Kxe4 {[%clk 00:25:35]} {[%emt 00:01:20]} 43.
a4 {[%clk 00:14:19]} {[%emt 00:00:03]} f5 {[%clk 00:22:04]} {[%emt 00:03:40]}
44. gxf5 {[%clk 00:14:10]} {[%emt 00:00:20]} Kxf5 {[%clk 00:22:08]} {[%emt
00:00:06]} 45. a5 {[%clk 00:12:30]} {[%emt 00:01:51]} Rh6 {[%clk 00:20:52]}
{[%emt 00:01:25]} 46. Rc7 {[%clk 00:12:10]} {[%emt 00:00:30]} Ra6 {[%clk
00:19:37]} {[%emt 00:01:25]} 47. Rc5 {[%clk 00:12:09]} {[%emt 00:00:12]} Ke6
{[%clk 00:16:30]} {[%emt 00:03:16]} 48. Kc2 {[%clk 00:12:08]} {[%emt 00:00:11]}
Kd6 {[%clk 00:16:04]} {[%emt 00:00:35]} 49. Rb5 {[%clk 00:11:53]} {[%emt
00:00:26]} Rc6 {[%clk 00:14:42]} {[%emt 00:01:32]} 50. Kc3 {[%clk 00:11:28]}
{[%emt 00:00:36]} Rc5 {[%clk 00:12:49]} {[%emt 00:02:02]} 51. Kb4 {[%clk
00:10:20]} {[%emt 00:01:18]} Rc6 {[%clk 00:12:17]} {[%emt 00:00:41]} 52. Rb8
{[%clk 00:10:07]} {[%emt 00:00:23]} e4 {[%clk 00:11:30]} {[%emt 00:00:57]} 53.
Re8 {[%clk 00:09:46]} {[%emt 00:00:31]} Kd5 {[%clk 00:11:21]} {[%emt 00:00:20]}
54. Rd8+ {[%clk 00:09:50]} {[%emt 00:00:06]} Ke5 {[%clk 00:10:29]} {[%emt
00:01:02]} 55. Kb5 {[%clk 00:08:26]} {[%emt 00:01:34]} c3 {[%clk 00:08:44]}
{[%emt 00:01:54]} 56. Kxc6 {[%clk 00:08:12]} {[%emt 00:00:25]} c2 {[%clk
00:08:44]} {[%emt 00:00:10]} 57. Rd5+ {[%clk 00:08:21]} {[%emt 00:00:01]} 1-0

[Event "HSG Open 2022 A"]
[Site "Hilversum, Netherlands"]
[Date "2022.06.18"]
[Round "3.10"]
[White "Floor, Dirk"]
[Black "Wagenvoorde, Guido"]
[Result "1/2-1/2"]
[TimeControl "1:50 + 0.10"]
[WhiteElo "2198"]
[BlackElo "2090"]

1. Nf3 {[%clk 01:50:19]} {[%emt 12:54:03]} Nf6 {[%clk 01:49:54]} {[%emt
00:00:25]} 2. g3 {[%clk 01:49:44]} {[%emt 00:00:45]} g6 {[%clk 01:49:49]}
{[%emt 00:00:16]} 3. Bg2 {[%clk 01:49:24]} {[%emt 00:00:29]} Bg7 {[%clk
01:49:50]} {[%emt 00:00:09]} 4. d4 {[%clk 01:49:18]} {[%emt 00:00:16]} O-O
{[%clk 01:49:40]} {[%emt 00:00:19]} 5. O-O {[%clk 01:49:18]} {[%emt 00:00:11]}
d6 {[%clk 01:49:35]} {[%emt 00:00:15]} 6. a4 {[%clk 01:48:31]} {[%emt
00:00:58]} a5 {[%clk 01:44:27]} {[%emt 00:05:17]} 7. Nc3 {[%clk 01:46:20]}
{[%emt 00:02:21]} Nbd7 {[%clk 01:42:53]} {[%emt 00:01:45]} 8. d5 {[%clk
01:44:35]} {[%emt 00:01:56]} e5 {[%clk 01:35:53]} {[%emt 00:07:09]} 9. dxe6
{[%clk 01:43:01]} {[%emt 00:01:44]} fxe6 {[%clk 01:34:28]} {[%emt 00:01:35]} 10.
e4 {[%clk 01:39:12]} {[%emt 00:03:59]} e5 {[%clk 01:22:17]} {[%emt 00:12:21]}
11. Ne1 {[%clk 01:35:06]} {[%emt 00:04:16]} Nc5 {[%clk 01:17:48]} {[%emt
00:04:39]} 12. Be3 {[%clk 01:30:55]} {[%emt 00:04:20]} Qe7 {[%clk 01:08:01]}
{[%emt 00:09:58]} 13. f3 {[%clk 01:24:11]} {[%emt 00:06:53]} Be6 {[%clk
01:04:01]} {[%emt 00:04:08]} 14. Nd3 {[%clk 01:19:10]} {[%emt 00:05:11]} b6
{[%clk 01:00:47]} {[%emt 00:03:26]} 15. Rf2 {[%clk 01:15:00]} {[%emt 00:04:19]}
Rad8 {[%clk 00:54:47]} {[%emt 00:06:10]} 16. Rd2 {[%clk 01:12:58]} {[%emt
00:02:13]} Rfe8 {[%clk 00:46:26]} {[%emt 00:08:32]} 17. Bf1 {[%clk 01:08:40]}
{[%emt 00:04:28]} Qf8 {[%clk 00:42:53]} {[%emt 00:03:43]} 18. Nxc5 {[%clk
01:03:20]} {[%emt 00:05:30]} bxc5 {[%clk 00:42:45]} {[%emt 00:00:18]} 19. Bb5
{[%clk 01:00:24]} {[%emt 00:03:06]} Nd7 {[%clk 00:38:02]} {[%emt 00:04:52]} 20.
Qe2 {[%clk 00:53:29]} {[%emt 00:07:05]} Bh6 {[%clk 00:35:56]} {[%emt 00:02:17]}
21. Kg2 {[%clk 00:48:34]} {[%emt 00:05:04]} Bxe3 {[%clk 00:34:12]} {[%emt
00:01:55]} 22. Qxe3 {[%clk 00:48:36]} {[%emt 00:00:08]} Qf7 {[%clk 00:33:57]}
{[%emt 00:00:25]} 23. Bc6 {[%clk 00:47:51]} {[%emt 00:00:54]} Rf8 {[%clk
00:31:51]} {[%emt 00:02:16]} 24. Bd5 {[%clk 00:41:26]} {[%emt 00:06:35]} Nf6
{[%clk 00:25:29]} {[%emt 00:06:33]} 25. Bxe6 {[%clk 00:41:16]} {[%emt
00:00:20]} Qxe6 {[%clk 00:25:10]} {[%emt 00:00:29]} 26. Nd5 {[%clk 00:39:43]}
{[%emt 00:01:43]} Nxd5 {[%clk 00:25:01]} {[%emt 00:00:19]} 27. Rxd5 {[%clk
00:39:31]} {[%emt 00:00:21]} Rb8 {[%clk 00:24:46]} {[%emt 00:00:25]} 28. b3
{[%clk 00:35:42]} {[%emt 00:03:59]} Rb4 {[%clk 00:17:39]} {[%emt 00:07:19]} 29.
c4 {[%clk 00:33:17]} {[%emt 00:02:34]} Rfb8 {[%clk 00:17:36]} {[%emt 00:00:12]}
30. Rd3 {[%clk 00:32:58]} {[%emt 00:00:28]} Kg7 {[%clk 00:17:39]} {[%emt
00:00:09]} 1/2-1/2

[Event "HSG Open 2022 A"]
[Site "Hilversum, Netherlands"]
[Date "2022.06.18"]
[Round "4.1"]
[White "Beerdsen, Thomas"]
[Black "Elgersma, Onno"]
[Result "1-0"]
[TimeControl "1:50 + 0.10"]
[WhiteElo "2494"]
[BlackElo "2312"]

1. e4 {[%clk 01:50:17]} {[%emt 00:00:03]} c6 {[%clk 01:50:15]} {[%emt
00:00:05]} 2. d4 {[%clk 01:50:21]} {[%emt 00:00:06]} d5 {[%clk 01:50:21]}
{[%emt 00:00:04]} 3. e5 {[%clk 01:50:25]} {[%emt 00:00:06]} Bf5 {[%clk
01:50:26]} {[%emt 00:00:06]} 4. h4 {[%clk 01:50:22]} {[%emt 00:00:13]} h5
{[%clk 01:50:04]} {[%emt 00:00:32]} 5. c4 {[%clk 01:50:13]} {[%emt 00:00:19]}
e6 {[%clk 01:50:10]} {[%emt 00:00:05]} 6. Nc3 {[%clk 01:49:47]} {[%emt
00:00:35]} dxc4 {[%clk 01:48:47]} {[%emt 00:01:33]} 7. Bxc4 {[%clk 01:49:29]}
{[%emt 00:00:27]} Nd7 {[%clk 01:48:53]} {[%emt 00:00:05]} 8. Nge2 {[%clk
01:47:16]} {[%emt 00:02:22]} Be7 {[%clk 01:48:58]} {[%emt 00:00:06]} 9. Ng3
{[%clk 01:44:31]} {[%emt 00:02:54]} Bg6 {[%clk 01:40:16]} {[%emt 00:08:53]} 10.
Nge2 {[%clk 01:44:34]} {[%emt 00:00:06]} Bf5 {[%clk 01:38:58]} {[%emt
00:01:29]} 11. g3 {[%clk 01:44:38]} {[%emt 00:00:05]} Nh6 {[%clk 01:38:36]}
{[%emt 00:00:33]} 12. Bf4 {[%clk 01:44:42]} {[%emt 00:00:05]} Qb6 {[%clk
01:30:06]} {[%emt 00:08:40]} 13. Qd2 {[%clk 01:41:06]} {[%emt 00:03:45]} Rd8
{[%clk 01:29:24]} {[%emt 00:00:54]} 14. Rd1 {[%clk 01:34:46]} {[%emt 00:06:29]}
Ng4 {[%clk 01:19:40]} {[%emt 00:09:54]} 15. Qc1 {[%clk 01:28:01]} {[%emt
00:06:55]} Qb4 {[%clk 01:06:13]} {[%emt 00:13:38]} 16. Bb3 {[%clk 01:26:36]}
{[%emt 00:01:35]} Be4 {[%clk 00:48:02]} {[%emt 00:18:20]} 17. O-O {[%clk
01:20:58]} {[%emt 00:05:47]} Bf3 {[%clk 00:47:54]} {[%emt 00:00:19]} 18. Bd2
{[%clk 01:13:56]} {[%emt 00:07:11]} Qb6 {[%clk 00:46:13]} {[%emt 00:01:52]} 19.
Bg5 {[%clk 01:13:50]} {[%emt 00:00:17]} Bxg5 {[%clk 00:17:01]} {[%emt
00:29:22]} 20. Qxg5 {[%clk 01:13:50]} {[%emt 00:00:09]} O-O {[%clk 00:12:54]}
{[%emt 00:04:17]} 21. Bc2 {[%clk 01:02:57]} {[%emt 00:11:02]} c5 {[%clk
00:07:55]} {[%emt 00:05:11]} 22. Nf4 {[%clk 00:56:02]} {[%emt 00:07:04]} Nh6
{[%clk 00:04:46]} {[%emt 00:03:20]} 23. Ne4 {[%clk 00:49:57]} {[%emt 00:06:13]}
Bxe4 {[%clk 00:01:56]} {[%emt 00:03:01]} 24. Bxe4 {[%clk 00:49:53]} {[%emt
00:00:14]} f5 {[%clk 00:01:06]} {[%emt 00:01:01]} 25. Nxh5 {[%clk 00:48:50]}
{[%emt 00:01:12]} Rf7 {[%clk 00:00:15]} {[%emt 00:01:02]} 26. dxc5 {[%clk
00:48:34]} {[%emt 00:00:25]} Qc7 {[%clk 00:00:13]} {[%emt 00:00:12]} 27. Bxb7
{[%clk 00:46:25]} {[%emt 00:02:19]} Rb8 {[%clk 00:00:19]} {[%emt 00:00:04]} 28.
Bg2 {[%clk 00:45:30]} {[%emt 00:01:04]} Nxc5 {[%clk 00:00:14]} {[%emt
00:00:16]} 29. Rd6 {[%clk 00:43:40]} {[%emt 00:02:00]} Qe7 {[%clk 00:00:13]}
{[%emt 00:00:11]} 30. Rc1 {[%clk 00:42:19]} {[%emt 00:01:30]} Ne4 {[%clk
00:00:12]} {[%emt 00:00:12]} 31. Bxe4 {[%clk 00:41:49]} {[%emt 00:00:41]} fxe4
{[%clk 00:00:21]} 32. Nf6+ {[%clk 00:41:45]} {[%emt 00:00:13]} Kh8 {[%clk
00:00:16]} {[%emt 00:00:15]} 33. Nxe4 {[%clk 00:41:14]} {[%emt 00:00:40]} Nf5
{[%clk 00:00:12]} {[%emt 00:00:15]} 34. Qh5+ {[%clk 00:41:03]} {[%emt
00:00:20]} 1-0